bitfinex/quotes_ETHUSD_20250112
["timestamp","ask_amount","ask_price","bid_price","bid_amount"]
[1736711194478,0.292595,3283.3,3282.4,8.38]
[1736711194682,0.292595,3283.3,3282.4,10.51257]
[1736711196408,0.292595,3283.3,3282.5,0.03046136]
[1736711196605,2.92595,3283.4,3282.4,10.51257]
[1736711198725,0.794,3283.4,3282.4,10.51257]
[1736711201993,2.92595,3283.4,3282.4,10.51257]
[1736711203694,0.7877,3283.5,3282.4,8.38]
[1736711203889,2.13218,3283.1,3282.4,8.38]
[1736711204117,0.7877,3282.9,3282.4,5.38]
[1736711210072,0.7877,3282.9,3282.4,7.51258]
[1736711210238,0.8152,3283.1,3282.4,8.33328]
[1736711210535,0.8152,3283.1,3282.4,5.38]
[1736711215030,0.8152,3283.1,3282.5,0.03046141]
[1736711215231,0.8152,3283.1,3282.4,7.51257]
[1736711218551,0.8152,3283.1,3282.4,5.38]
[1736711220252,0.8152,3283.1,3282.5,0.03046141]
[1736711220846,0.8152,3283.1,3282.5,3.03046141]
[1736711221055,0.9737,3283.5,3282.7,5.13238]
[1736711221220,0.211,3283.7,3282.9,0.7668]
[1736711221419,0.211,3283.7,3282.9,3.7668]
[1736711221614,0.211,3283.7,3282.9,0.7668]
[1736711221850,0.7627,3283.8,3282.9,0.7668]
[1736711222062,3.1054,3283.8,3282.9,0.7668]
[1736711222355,3.49167292,3283.8,3282.9,0.7668]
[1736711222562,3.70267292,3283.8,3282.9,0.7668]
[1736711222738,3.49167292,3283.8,3282.9,0.7668]
[1736711223051,3.70267292,3283.8,3283.0,5.38]
[1736711226757,3.49167292,3283.8,3283.0,5.38]
[1736711226915,2.8944,3283.8,3283.0,5.38]
[1736711232921,2.8944,3283.8,3283.0,5.41045689]
[1736711233536,2.8944,3283.8,3283.0,5.38]
[1736711234661,2.8944,3283.8,3283.0,5.41045688]
[1736711241076,2.8944,3283.8,3283.0,5.38]
[1736711241271,3.49167292,3283.8,3283.0,5.38]
[1736711243279,3.49167292,3283.8,3283.1,0.8329]
[1736711243640,2.72897292,3283.8,3283.1,0.8329]
[1736711243840,2.1317,3283.8,3283.1,0.8329]
[1736711244274,0.47166629,3283.9,3283.1,0.8329]
[1736711244581,2.34262,3283.9,3283.1,0.8329]
[1736711244743,0.211,3283.9,3283.1,11.34502]
[1736711244938,2.91124,3284.4,3283.5,0.8329]
[1736711245145,0.21,3284.3,3283.5,0.86335176]
[1736711245347,1.41362467,3284.3,3283.5,0.86335176]
[1736711246090,1.20362467,3284.3,3283.5,0.86335176]
[1736711246607,0.21,3284.6,3283.7,0.8329]
[1736711246739,0.21,3284.6,3283.8,5.96456]
[1736711246943,0.21,3284.6,3283.9,0.86334698]
[1736711247180,0.21,3284.6,3284.0,0.8329]
[1736711247745,2.13092,3285.0,3284.3,0.8329]
[1736711247746,0.21,3285.0,3284.3,0.8329]
[1736711247896,3.68815942,3285.1,3284.3,0.8329]
[1736711248396,1.55730942,3285.1,3284.4,0.03044503]
[1736711248731,1.55730942,3285.1,3284.5,0.8329]
[1736711251636,1.55730942,3285.1,3284.5,6.2129]
[1736711254324,1.55730942,3285.1,3284.5,6.83419]
[1736711255034,1.55730942,3285.1,3284.6,0.7858]
[1736711255399,1.55730942,3285.1,3284.6,0.81624185]
[1736711257731,1.55730942,3285.1,3284.6,0.7858]
[1736711258826,1.55730942,3285.1,3284.6,6.1658]
[1736711259015,1.55730942,3285.1,3284.7,0.42398457]
[1736711260823,1.55730942,3285.1,3284.6,6.1658]
[1736711278983,1.2029649,3284.9,3284.6,5.38]
[1736711279442,1.2029649,3284.7,3284.6,5.38]
[1736711279779,1.2029649,3284.7,3284.4,0.7741]
[1736711279780,0.8152,3284.6,3284.0,0.7741]
[1736711280078,1.1982744,3284.5,3284.0,3.7741]
[1736711280279,3.3295044,3284.5,3284.0,3.7741]
[1736711281147,1.2029649,3284.3,3283.9,5.38]
[1736711281461,1.2029649,3284.3,3283.6,5.38]
[1736711281462,0.8152,3284.1,3283.6,5.38]
[1736711281873,2.13136,3284.3,3283.6,5.38]
[1736711282179,3.8590606,3284.5,3283.8,0.7741]
[1736711282180,0.8152,3284.5,3283.8,0.7741]
[1736711282770,2.3411,3284.7,3283.8,0.7741]
[1736711282946,2.3411,3284.7,3283.9,0.59362896]
[1736711283155,2.3411,3284.7,3283.8,0.7741]
[1736711284287,0.21,3284.7,3283.8,2.9362195]
[1736711284501,0.21,3284.7,3283.9,0.0075]
[1736711284785,0.21,3284.7,3284.0,0.7845]
[1736711285086,2.34098,3284.9,3284.0,0.81494725]
[1736711285283,2.34098,3284.9,3284.0,1.11035197]
[1736711285484,0.785,3285.0,3284.1,0.0075]
[1736711285783,1.76730942,3285.1,3284.3,0.7845]
[1736711286271,1.76730942,3285.1,3284.4,5.38]
[1736711288253,0.21,3285.1,3284.4,5.38]
[1736711290450,0.21,3285.1,3284.5,0.8307]
[1736711291289,0.21,3285.1,3284.5,6.2107]
[1736711292259,0.9865,3285.1,3284.5,6.2107]
[1736711294118,2.13058,3285.5,3284.6,3.0]
[1736711294256,0.7765,3285.6,3284.7,0.8307]
[1736711294570,0.7765,3285.6,3284.8,0.59922735]
[1736711294772,2.34046,3285.7,3284.9,0.8075]
[1736711294973,0.21,3285.7,3284.9,0.8075]
[1736711295177,0.21,3285.7,3284.9,8.31846]
[1736711295833,2.34039,3285.8,3284.9,6.1875]
[1736711296395,2.34039,3285.8,3284.9,6.63354722]
[1736711296594,0.45944436,3286.4,3285.1,5.3875]
[1736711296795,3.82095903,3286.6,3285.6,0.8075]
[1736711296969,3.82095903,3286.6,3285.9,5.38]
[1736711297178,0.8213,3287.0,3286.0,0.8075]
[1736711297374,2.95092,3287.0,3286.0,0.8075]
[1736711297604,3.246012,3287.0,3286.0,0.8075]
[1736711298105,2.12972,3286.9,3286.0,0.8075]
[1736711299490,2.33972,3286.9,3286.0,0.8075]
[1736711300790,2.33972,3286.9,3286.0,6.1875]
[1736711301978,2.12973,3286.8,3286.0,6.1875]
[1736711302178,2.12973,3286.8,3286.1,0.59922735]
[1736711306894,2.12973,3286.8,3286.1,5.97922735]
[1736711307090,0.21,3286.9,3286.1,5.38]
[1736711307291,2.12991,3286.6,3286.1,5.38]
[1736711307493,0.21,3286.9,3286.1,5.38]
[1736711307728,2.12993,3286.5,3286.1,5.38]
[1736711309071,2.13,3286.4,3286.1,5.38]
[1736711309479,2.1301,3286.3,3286.1,5.38]
[1736711312284,2.13011,3286.2,3286.1,5.38]
[1736711312720,0.8114,3286.2,3285.3,0.7711]
[1736711312917,2.13025,3286.0,3285.3,0.7711]
[1736711313415,2.13038,3285.8,3285.3,0.7711]
[1736711313576,2.13044,3285.7,3285.1,0.7711]
[1736711313780,2.13056,3285.6,3285.1,0.7711]
[1736711314273,2.13057,3285.5,3284.9,5.38]
[1736711314618,2.13062,3285.5,3284.9,6.1511]
[1736711317797,2.13064,3285.4,3284.9,6.1511]
[1736711317987,2.13072,3285.3,3284.9,6.1511]
[1736711319787,2.13084,3285.1,3284.6,0.7568]
[1736711321117,2.13091,3285.0,3284.6,0.7568]
[1736711322823,2.13091,3285.0,3284.4,0.7568]
[1736711324703,2.60839016,3285.0,3284.3,5.38]
[1736711325522,4.73934016,3285.0,3284.3,5.38]
[1736711325815,5.28835418,3285.0,3284.3,5.38]
[1736711326834,2.67996402,3285.0,3284.3,5.38]
[1736711327031,2.13096,3284.9,3284.3,5.38]
[1736711328442,2.13091,3285.0,3284.3,5.38]
[1736711337213,0.209,3284.9,3284.3,5.38]
[1736711338353,0.209,3284.9,3284.1,6.1368]
[1736711338354,0.442991,3284.9,3284.1,6.1368]
[1736711338515,2.60839016,3284.4,3283.8,0.7787]
[1736711339047,2.13137,3284.3,3283.8,0.7787]
[1736711339249,2.13137,3284.3,3283.7,5.38]
[1736711339250,0.7685,3284.3,3283.7,5.38]
[1736711339434,2.13154,3284.1,3283.7,5.38]
[1736711339850,2.47781221,3284.1,3283.7,5.38]
[1736711342646,0.34627221,3284.1,3283.6,0.7787]
[1736711342849,2.89987,3284.3,3283.6,0.7787]
[1736711343372,2.13144,3284.2,3283.6,0.7787]
[1736711344070,2.60839016,3284.0,3283.6,0.7787]
[1736711344277,3.7685,3283.9,3283.1,0.7787]
[1736711344434,2.13179,3283.7,3283.1,0.7787]
[1736711344636,0.63768902,3283.8,3283.1,0.7787]
[1736711346376,5.90012,3283.9,3283.1,0.7787]
[1736711346738,3.0,3283.9,3283.2,0.0075]
[1736711347080,0.209,3284.1,3283.3,0.7787]
[1736711347241,2.60839016,3284.0,3283.3,0.7787]
[1736711347441,2.13167,3283.8,3283.3,0.7787]
[1736711347635,2.90017,3283.8,3283.3,0.7787]
[1736711348375,0.209,3284.1,3283.3,0.7787]
[1736711348781,0.209,3284.1,3283.3,6.1587]
[1736711349779,2.34053,3284.1,3283.3,6.1587]
[1736711350675,2.34053,3284.1,3283.4,0.7576]
[1736711351366,2.34053,3284.1,3283.5,1.37136]
[1736711351569,2.34053,3284.1,3283.5,0.7576]
[1736711359646,3.0,3284.3,3283.5,0.7576]
[1736711359647,2.13136,3284.3,3283.6,0.03795391]
[1736711359851,2.1312,3284.6,3283.7,0.8073]
[1736711360092,0.209,3284.5,3283.7,0.8073]
[1736711360253,2.34028,3284.5,3283.9,0.8073]
[1736711360807,2.13128,3284.5,3283.9,0.8073]
[1736711361504,1.71578266,3284.6,3284.0,0.8073]
[1736711362056,2.13122,3284.5,3284.0,0.8073]
[1736711362278,2.13129,3284.4,3284.0,0.8073]
[1736711364912,3.84696266,3284.6,3284.0,0.8073]
[1736711366074,1.71578266,3284.6,3284.0,0.8073]
[1736711366279,2.13123,3284.5,3284.0,0.8073]
[1736711372048,2.13134,3284.4,3284.0,0.8073]
[1736711381343,1.71578266,3284.6,3284.0,0.8073]
[1736711381644,3.84695266,3284.6,3284.0,0.8073]
[1736711383949,1.71578266,3284.6,3284.0,0.8073]
[1736711384115,2.13123,3284.5,3284.0,0.8073]
[1736711394506,2.63647863,3284.5,3284.0,0.8073]
[1736711395311,2.13123,3284.5,3284.0,0.8073]
[1736711396815,1.50678266,3284.6,3284.0,0.8073]
[1736711397016,1.50678266,3284.6,3284.0,0.83774732]
[1736711397243,1.50678266,3284.6,3284.1,0.81794732]
[1736711397741,1.50678266,3284.6,3284.2,0.0075]
[1736711397930,1.50678266,3284.6,3284.5,0.795]
[1736711402197,1.50678266,3284.6,3284.3,5.38]
[1736711402500,2.13128,3284.4,3284.0,0.7875]
[1736711405458,2.30928266,3284.6,3284.0,0.7875]
[1736711405691,4.44044266,3284.6,3284.0,0.7875]
[1736711406231,4.44044266,3284.6,3283.7,0.030449]
[1736711406232,1.50678266,3284.6,3284.3,0.0075]
[1736711406513,1.50678266,3284.6,3284.5,0.0075]
[1736711406677,2.1306,3285.5,3284.7,0.0075]
[1736711406880,2.1306,3285.5,3284.9,0.7739]
[1736711407221,5.13049,3285.7,3284.9,0.7739]
[1736711407356,5.13052,3285.6,3284.9,0.7739]
[1736711408862,3.0,3285.6,3284.9,0.7739]
[1736711409102,5.13059,3285.5,3284.9,0.7739]
[1736711410302,0.209,3286.1,3285.2,0.0075]
[1736711410472,0.209,3286.1,3285.2,0.03793632]
[1736711410675,3.209,3286.1,3285.2,0.03793632]
[1736711411001,2.13039,3285.8,3285.2,0.03793632]
[1736711411178,2.13039,3285.8,3285.2,0.0075]
[1736711411363,2.13039,3285.8,3285.2,0.03793634]
[1736711411563,2.13039,3285.8,3285.2,0.0075]
[1736711413004,2.13039,3285.8,3285.2,0.03793631]
[1736711413183,2.13039,3285.8,3285.2,0.0075]
[1736711413518,2.13039,3285.8,3285.2,0.0379363]
[1736711413809,2.13039,3285.8,3285.2,0.0075]
[1736711413971,2.13039,3285.8,3285.2,0.03793631]
[1736711414173,2.13039,3285.8,3285.2,0.0075]
[1736711414406,2.13039,3285.8,3285.2,0.03793631]
[1736711414609,2.13039,3285.8,3285.2,0.0075]
[1736711414905,2.13039,3285.8,3285.2,0.03793632]
[1736711415064,2.13058,3285.5,3285.1,0.8319]
[1736711417306,2.13058,3285.5,3285.1,1.45309]
[1736711421719,2.13058,3285.5,3285.1,0.8319]
[1736711425429,2.92815,3285.7,3285.1,0.8319]
[1736711428612,0.7977,3285.7,3285.1,0.8319]
[1736711428811,2.13051,3285.6,3285.1,0.8319]
[1736711429308,2.13057,3285.5,3285.1,0.8319]
[1736711429634,2.13064,3285.4,3285.1,0.8319]
[1736711430831,0.292827,3285.5,3285.1,0.8319]
[1736711431139,2.13053,3285.6,3285.1,0.8319]
[1736711437426,3.33328802,3285.6,3285.1,0.8319]
[1736711437619,1.20275802,3285.6,3285.1,0.8319]
[1736711439022,5.97430761,3286.2,3285.4,0.0075]
[1736711439364,3.94722563,3286.2,3285.5,0.7873]
[1736711439746,2.74446761,3286.2,3285.5,0.7873]
[1736711440080,3.94722563,3286.2,3285.5,0.7873]
[1736711441137,1.20275802,3286.0,3285.5,0.7873]
[1736711441452,2.74446761,3286.2,3285.5,0.7873]
[1736711443341,2.13016,3286.2,3285.5,0.7873]
[1736711443744,1.0352,3286.3,3285.5,0.7873]
[1736711443745,2.13018,3286.1,3285.5,0.7873]
[1736711444690,2.13027,3286.0,3285.5,0.7873]
[1736711446887,0.213027,3286.0,3285.5,0.7873]
[1736711447076,2.13055,3285.6,3285.2,0.7873]
[1736711451788,0.8252,3285.9,3285.2,0.7873]
[1736711451994,2.13043,3285.8,3285.2,0.7873]
[1736711452489,3.40529313,3286.1,3285.3,0.0075]
[1736711452689,3.40529313,3286.1,3285.2,0.7873]
[1736711452690,3.82523079,3286.3,3285.5,0.0075]
[1736711452877,3.34170308,3286.2,3285.5,0.0075]
[1736711453481,3.34170308,3286.2,3285.0,0.8201]
[1736711453667,2.13018,3286.2,3285.5,0.8126]
[1736711454811,2.13018,3286.1,3285.5,0.8126]
[1736711457184,2.13029,3286.0,3285.5,0.8126]
[1736711460005,2.13032,3285.9,3285.5,0.8126]
[1736711461218,0.82523079,3286.3,3285.5,0.8126]
[1736711461518,1.2029105,3285.6,3285.3,5.38]
[1736711461838,2.13063,3285.5,3285.2,0.7572]
[1736711470164,2.13046,3285.7,3285.2,0.7572]
[1736711475572,0.21,3285.8,3285.2,0.7572]
[1736711475573,2.13055,3285.6,3285.2,0.7572]
[1736711475865,2.364615,3285.6,3284.9,5.38]
[1736711476066,2.13085,3285.1,3284.6,0.7841]
[1736711476289,2.1307,3285.3,3284.4,0.7841]
[1736711476435,0.8237,3284.9,3284.3,5.38]
[1736711476773,0.8237,3284.9,3283.8,0.7916]
[1736711476982,2.13141,3284.3,3283.8,0.7916]
[1736711478163,0.8237,3284.5,3283.8,0.7916]
[1736711478485,2.13129,3284.4,3283.8,0.7916]
[1736711482440,2.426789,3284.4,3283.8,0.7916]
[1736711482640,2.13137,3284.3,3283.8,0.7916]
[1736711483367,3.33501862,3284.3,3283.8,0.7916]
[1736711485798,3.33530862,3283.9,3283.5,0.7818]
[1736711485944,1.20364862,3283.7,3283.5,0.7818]
[1736711486139,2.1318,3283.6,3283.2,0.7818]
[1736711486448,1.20364862,3283.7,3283.2,0.7818]
[1736711487483,2.1317,3283.8,3283.2,0.7818]
[1736711487681,2.13174,3283.7,3283.2,0.7818]
[1736711489679,2.424914,3283.7,3283.2,0.7818]
[1736711490046,2.13174,3283.7,3283.2,0.7818]
[1736711490483,2.93162,3283.9,3283.2,0.7818]
[1736711490646,2.13173,3283.8,3283.2,0.7818]
[1736711491189,2.13173,3283.8,3282.7,3.0]
[1736711491190,2.6089444,3283.3,3282.6,5.38]
[1736711491346,2.6089444,3283.3,3282.7,0.7596]
[1736711491347,4.7409544,3283.3,3282.7,0.7596]
[1736711491541,0.55066544,3283.3,3282.7,0.7596]
[1736711491745,0.209,3283.4,3282.7,0.7596]
[1736711493513,2.34094,3283.4,3282.7,0.7596]
[1736711496487,0.7657,3283.7,3283.0,0.0075]
[1736711496817,5.89747,3283.7,3283.0,0.0075]
[1736711497216,3.7657,3283.7,3283.0,0.0075]
[1736711497522,3.7657,3283.7,3282.9,0.83]
[1736711497523,0.39747,3283.6,3282.9,0.83]
[1736711497706,2.13206,3283.2,3282.6,0.83]
[1736711497905,0.7727,3283.1,3282.7,0.0075]
[1736711498281,0.7727,3283.1,3282.4,5.38]
[1736711498489,2.34121,3283.0,3282.4,5.38]
[1736711499425,2.13238,3282.8,3282.3,0.83]
[1736711500950,2.652591,3283.0,3282.3,0.83]
[1736711502128,0.520391,3283.0,3282.3,0.83]
[1736711502344,2.13226,3282.9,3282.3,0.83]
[1736711503530,0.209,3283.0,3282.3,0.83]
[1736711504619,2.34122,3283.0,3282.3,0.83]
[1736711506428,2.13208,3283.2,3282.4,0.03796503]
[1736711506639,2.13202,3283.3,3282.6,0.0075]
[1736711506833,0.209,3283.1,3282.6,0.0075]
[1736711507777,0.209,3283.1,3282.5,0.83]
[1736711512855,0.7787,3283.0,3282.5,0.0075]
[1736711514538,2.34114,3283.1,3282.4,0.0075]
[1736711519041,2.34114,3283.1,3282.4,0.03796209]
[1736711519751,2.34113,3283.1,3282.4,0.03796209]
[1736711519955,2.34113,3283.1,3282.5,0.8212]
[1736711520478,0.7787,3283.2,3282.5,0.8212]
[1736711520680,0.21,3283.1,3282.5,0.8212]
[1736711521180,2.13226,3282.9,3282.5,0.8212]
[1736711521393,3.337011,3282.9,3282.5,0.8212]
[1736711521683,0.7787,3283.0,3282.5,0.8212]
[1736711522797,0.21,3283.1,3282.5,0.8212]
[1736711532829,2.34213,3283.1,3282.5,0.8212]
[1736711535838,1.204751,3282.8,3282.5,0.8212]
[1736711536174,3.337081,3282.8,3282.5,0.8212]
[1736711536727,2.13233,3282.8,3282.5,0.8212]
[1736711537689,1.204751,3282.6,3282.0,0.8163]
[1736711537892,3.337361,3282.4,3282.0,0.8163]
[1736711539175,2.13261,3282.4,3282.0,0.8163]
[1736711540297,1.204751,3282.6,3282.0,0.8163]
[1736711540590,2.13265,3282.3,3282.0,0.8163]
[1736711540786,1.204751,3282.4,3282.0,0.8163]
[1736711542862,2.13241,3282.7,3282.0,0.8163]
[1736711543173,3.627612,3282.7,3282.0,0.8163]
[1736711545441,1.204751,3282.3,3282.0,0.8163]
[1736711545789,1.204751,3282.1,3281.7,0.8163]
[1736711547441,1.204751,3282.1,3281.5,3.0]
[1736711547442,0.9821,3282.3,3281.5,0.8163]
[1736711547761,2.13278,3282.1,3281.5,0.8163]
[1736711548918,0.311488,3282.1,3281.5,0.8163]
[1736711549119,2.13287,3282.0,3281.5,0.8163]
[1736711551070,2.13298,3281.8,3281.3,0.1673842]
[1736711552004,4.74448896,3281.5,3281.3,0.1673842]
[1736711552181,6.14543,3281.4,3281.3,0.1673842]
[1736711552398,7.0210989,3281.4,3281.3,0.1673842]
[1736711552603,7.64304713,3281.4,3281.3,0.1673842]
[1736711552804,7.65054713,3281.4,3281.3,0.1673842]
[1736711552987,10.26180609,3281.4,3281.3,0.1673842]
[1736711553223,10.82680609,3281.4,3281.3,0.1673842]
[1736711553423,10.82680609,3281.4,3280.7,1.27246491]
[1736711553424,5.55357896,3280.8,3280.7,1.27246491]
[1736711553717,6.10893686,3280.8,3280.7,1.27246491]
[1736711556344,6.10143686,3280.8,3280.7,1.27246491]
[1736711556494,0.5553579,3280.8,3280.7,1.27246491]
[1736711556830,3.8012,3281.1,3280.7,1.27246491]
[1736711557010,0.211,3281.0,3280.7,1.27246491]
[1736711562037,0.8012,3280.9,3280.7,1.27246491]
[1736711562212,2.61875896,3280.8,3280.7,1.27246491]
[1736711562417,4.75237896,3280.8,3280.7,1.27246491]
[1736711562735,5.32883686,3280.8,3280.7,1.27246491]
[1736711567838,2.7175779,3280.8,3280.7,1.27246491]
[1736711568788,7.49351,3281.0,3280.7,1.27246491]
[1736711569067,0.211,3280.8,3280.7,1.27246491]
[1736711580990,2.34462,3280.8,3280.7,1.27246491]
[1736711582180,0.211,3280.8,3280.7,1.27246491]
[1736711582983,2.34462,3280.8,3280.7,1.27246491]
[1736711593304,2.879082,3280.8,3280.7,1.27246491]
[1736711593604,3.695682,3280.8,3280.7,1.27246491]
[1736711598514,3.16122,3280.8,3280.7,1.27246491]
[1736711599443,3.55087546,3280.8,3280.7,1.27246491]
[1736711599742,0.218,3280.9,3280.7,1.27246491]
[1736711599911,1.20625546,3280.8,3280.7,1.27246491]
[1736711608156,0.218,3280.9,3280.7,1.27246491]
[1736711608349,0.218,3280.9,3280.8,0.7854]
[1736711609044,0.218,3280.9,3280.7,1.27246491]
[1736711609748,3.69678736,3281.1,3280.7,1.27246491]
[1736711610051,3.91178736,3281.1,3280.7,1.27246491]
[1736711610951,3.33978546,3281.0,3280.7,1.27246491]
[1736711611146,3.85159974,3281.0,3280.7,1.27246491]
[1736711612017,4.06659974,3281.0,3280.7,1.27246491]
[1736711614636,1.93306974,3281.0,3280.7,1.27246491]
[1736711614836,3.33987546,3280.8,3280.7,1.27246491]
[1736711616301,2.13362,3280.8,3280.7,1.27246491]
[1736711616441,1.47761428,3281.0,3280.7,1.27246491]
[1736711616442,0.9658,3281.0,3280.7,1.27246491]
[1736711616759,2.34851,3281.0,3280.7,1.27246491]
[1736711617053,0.215,3281.0,3280.8,0.8213]
[1736711618865,1.56335736,3281.1,3280.9,0.0075]
[1736711619969,1.56335736,3281.1,3281.0,0.8213]
[1736711623083,2.13349,3281.0,3280.7,2.09376491]
[1736711625101,1.56335736,3281.1,3280.7,2.09376491]
[1736711631014,3.69678736,3281.1,3280.7,2.09376491]
[1736711633699,0.8072,3281.0,3280.7,1.27246491]
[1736711634515,3.69678736,3281.1,3280.7,1.27246491]
[1736711635336,2.13356,3280.9,3280.7,1.27246491]
[1736711635514,0.8072,3280.8,3280.7,1.27246491]
[1736711638687,1.0222,3280.8,3280.7,1.27246491]
[1736711639018,0.215,3280.8,3280.7,1.27246491]
[1736711642013,0.215,3280.8,3280.7,2.08526491]
[1736711642211,1.77835736,3281.1,3280.7,2.08526491]
[1736711644783,1.56335736,3281.1,3280.9,0.8128]
[1736711648100,1.56335736,3281.1,3281.0,0.0075]
[1736711648300,1.56335736,3281.1,3281.0,0.85077594]
[1736711648435,1.56335736,3281.1,3281.0,0.8203]
[1736711657288,1.56335736,3281.1,3281.0,2.95379]
[1736711659144,1.56335736,3281.1,3281.0,5.98426277]
[1736711659344,1.56335736,3281.1,3281.0,5.95379]
[1736711659586,1.56335736,3281.1,3281.0,11.33379]
[1736711660882,1.56335736,3281.1,3281.0,11.89129]
[1736711661690,3.15094,3282.2,3281.3,0.0075]
[1736711662091,3.15094,3282.2,3281.3,0.296895]
[1736711664800,3.15094,3282.2,3281.5,0.0075]
[1736711665492,4.35611432,3282.2,3281.5,0.0075]
[1736711665690,4.14111432,3282.2,3281.5,0.03796948]
[1736711665879,3.15094,3282.2,3281.5,0.0075]
[1736711666224,2.13293,3281.9,3281.5,0.03046949]
[1736711666349,2.13293,3281.9,3281.4,0.7531]
[1736711668458,2.13293,3281.9,3281.4,1.3953495]
[1736711668661,0.215,3282.1,3281.5,0.0075]
[1736711668935,2.3478,3282.1,3281.5,0.0075]
[1736711673486,0.215,3282.1,3281.5,0.0075]
[1736711674598,0.215,3282.1,3281.7,0.0075]
[1736711675970,0.214,3282.3,3281.7,0.0075]
[1736711677110,0.214,3282.3,3281.7,0.30156796]
[1736711677799,1.20517432,3282.4,3281.7,0.30156796]
[1736711678001,2.95033,3282.5,3281.7,0.0075]
[1736711678184,2.95033,3282.5,3281.6,0.80006963]
[1736711678185,0.214,3282.4,3281.9,0.7771]
[1736711678801,1.0318,3282.5,3281.9,0.7771]
[1736711680289,0.214,3282.5,3281.9,0.7771]
[1736711681702,3.33767432,3282.6,3281.9,0.7771]
[1736711681903,3.55167432,3282.6,3281.9,0.7771]
[1736711684132,0.214,3282.6,3281.9,0.7771]
[1736711684338,0.214,3282.6,3282.0,0.7696]
[1736711685229,0.214,3282.7,3282.0,0.7696]
[1736711685430,3.55151432,3282.8,3282.0,0.7696]
[1736711686295,3.55151432,3282.8,3282.1,0.03796628]
[1736711686635,3.55151432,3282.8,3282.1,0.0075]
[1736711688346,1.20517432,3282.6,3282.1,0.0075]
[1736711688641,2.02297432,3282.6,3282.1,0.0075]
[1736711690924,1.20517432,3282.6,3282.1,0.0075]
[1736711700558,0.214,3282.8,3282.2,0.7998]
[1736711700731,0.214,3282.8,3282.4,0.7998]
[1736711701773,3.33732432,3283.1,3282.5,0.0075]
[1736711701920,0.214,3283.0,3282.5,0.0075]
[1736711702277,2.3462,3283.0,3282.5,0.0075]
[1736711702570,2.1322,3283.0,3282.5,0.0075]
[1736711708401,0.214,3283.1,3282.5,0.0075]
[1736711708748,2.34613,3283.1,3282.5,0.0075]
[1736711709767,1.20517432,3283.0,3282.5,0.0075]
[1736711710778,0.214,3283.1,3282.5,0.0075]
[1736711710985,0.214,3283.1,3282.7,0.0075]
[1736711712710,1.20517432,3283.0,3282.7,0.0075]
[1736711724337,1.20517432,3283.0,3282.6,0.83]
[1736711725656,2.13228,3282.9,3282.6,0.83]
[1736711726930,1.20517432,3282.7,3282.1,5.38]
[1736711727132,2.13284,3282.0,3281.4,0.8177]
[1736711727342,2.13297,3281.8,3281.4,0.8177]
[1736711727665,2.13286,3282.0,3281.4,0.8177]
[1736711727818,1.20517432,3282.1,3281.4,0.8177]
[1736711728016,0.214,3282.2,3281.5,0.0075]
[1736711728243,0.214,3282.2,3281.6,0.8252]
[1736711729335,2.13247,3282.6,3281.6,0.8252]
[1736711729521,2.13247,3282.6,3281.5,0.03047202]
[1736711729522,0.214,3282.5,3282.1,0.0075]
[1736711730070,0.214,3282.8,3282.2,0.7665]
[1736711730778,2.34633,3282.8,3282.2,0.7665]
[1736711731641,2.13239,3282.7,3282.2,0.7665]
[1736711732287,3.33756432,3282.7,3282.2,0.7665]
[1736711735241,0.214,3282.8,3282.3,0.0075]
[1736711735561,0.214,3282.8,3282.4,0.7665]
[1736711744459,3.33738432,3283.0,3282.4,0.7665]
[1736711757599,3.69252275,3283.0,3282.4,0.7665]
[1736711760597,3.69252275,3283.0,3282.5,0.0075]
[1736711765978,3.69252275,3283.0,3282.6,0.8147]
[1736711766179,4.37587448,3283.7,3282.7,0.0075]
[1736711766415,2.34392,3283.5,3282.8,0.8147]
[1736711766829,2.13192,3283.5,3282.9,0.0075]
[1736711766990,2.13192,3283.5,3283.0,0.8147]
[1736711768030,0.212,3283.6,3283.0,0.8147]
[1736711768321,0.212,3283.6,3283.1,0.0075]
[1736711768618,0.212,3283.6,3283.2,0.8147]
[1736711769494,1.20517432,3283.5,3283.2,0.8147]
[1736711783435,1.41717432,3283.8,3283.2,0.8147]
[1736711786011,1.20517432,3283.8,3283.4,0.7989]
[1736711791360,1.20517432,3283.6,3282.8,7.51229]
[1736711791649,1.20517432,3283.6,3282.9,0.802]
[1736711792730,1.20517432,3283.6,3283.0,0.0075]
[1736711793688,2.89045,3283.1,3282.8,5.38]
[1736711793998,1.20517432,3282.9,3282.8,5.38]
[1736711797876,1.20517432,3282.9,3282.5,0.0075]
[1736711798257,3.33745432,3282.9,3282.3,0.7835]
[1736711798461,1.20517432,3282.6,3282.3,0.7835]
[1736711799386,1.20517432,3282.8,3282.3,0.7835]
[1736711802599,1.20517432,3283.0,3282.3,0.7835]
[1736711803371,1.20517432,3283.0,3282.3,1.375127]
[1736711803654,4.30562432,3283.1,3282.4,0.03796463]
[1736711804229,2.17347432,3283.1,3282.4,0.03796463]
[1736711806079,1.41517432,3283.1,3282.5,0.7835]
[1736711806274,1.20517432,3283.1,3282.5,0.7835]
[1736711806680,1.20517432,3283.1,3282.6,0.0075]
[1736711806897,1.20517432,3283.1,3282.6,0.03796236]
[1736711807096,0.21,3283.2,3282.6,0.03796236]
[1736711807290,0.21,3283.4,3282.8,0.0075]
[1736711807499,0.21,3283.4,3282.9,0.7835]
[1736711808878,1.20517432,3283.5,3283.0,0.0075]
[1736711809083,1.20517432,3283.5,3283.0,0.03795727]
[1736711809667,2.34169,3283.8,3283.2,0.0075]
[1736711813708,1.20517432,3283.7,3283.2,0.0075]